Cogmind - Beta 13 @@@ ROGUE MODE // 2024.04.27 @ 15:19:40 Player: obieonecnolly Result: Destroyed by B-48 Gladiator with Mace Performance ------------- Evolutions (3) 1500 Regions Visited (4) 800 Robots Destroyed (132) 660 Value Destroyed (3205) 3205 Prototype IDs (6) 120 Alien Tech Used (0) 0 Bonus (390) 390 TOTAL SCORE: 6675 Bonus ------- High Alert Combat Kills 552 Friendly Fire -162 Cogmind --------- Core Integrity 0/700 Matter 63/300 Energy 100/100 System Corruption 14% Temperature Cool (0) Movement Core (50) Location -7/Factory Parts ------- > --- POWER (2) -------- (None) > --- PROPULSION (4) --- (None) > --- UTILITY (5) ------ (None) > --- WEAPON (2) ------- (None) > --- INVENTORY (5) ---- Advanced ECM Suite Layered Light Armor Plating Hacking Suite Peak State ------------ > --- POWER ------------ Improved Ion Engine Light Nuclear Core > --- PROPULSION ------- Improved VTOL Module Improved VTOL Module Improved VTOL Module Improved VTOL Module > --- UTILITY ---------- Transmission Jammer Advanced ECM Suite Layered Light Armor Plating Hacking Suite Hacking Suite > --- WEAPON ----------- Remote Datajack Powered Hammer > --- INVENTORY -------- Layered Light Armor Plating Hacking Suite Gatling Laser [Rating: 48] Favorites ----------- Power Light Ion Engine Engine Light Ion Engine Power Core Light Nuclear Core Propulsion Improved VTOL Module Wheel Wheel Hover Unit Improved Airjet Flight Unit Improved VTOL Module Utility Hacking Suite Device Reaction Control System Storage Large Storage Unit Processor Improved Terrain Scan Processor Hackware Hacking Suite Protection Medium Armor Plating Weapon Mini Grenade Launcher Energy Gun Beam Rifle Ballistic Gun Autogun Ballistic Cannon Advanced Assault Cannon Launcher Mini Grenade Launcher Special Weapon Plasma Cutter Impact Weapon Powered Hammer Special Melee Weapon Datajack Build | -11 -10 -9 -8 -7 ------- Run | Yrd Mat Mat Mat Fac Slots Evolved 6 | . . 2 2 2 Power 1 | . . . 1 . Propulsion 2 | . . 1 . 1 Utility 3 | . . 1 1 1 Weapon . | . . . . . Parts Attached 115 | 6 6 27 31 45 Power 15 | 1 . 2 5 7 Engine 13 | 1 . 2 5 5 Core 2 | . . . . 2 Reactor . | . . . . . Propulsion 22 | 2 . 9 4 7 Treads . | . . . . . Leg . | . . . . . Wheel 15 | 2 . 9 1 3 Hover 1 | . . . . 1 Flight 6 | . . . 3 3 Utility 35 | 1 2 8 10 14 Device 12 | . . 1 5 6 Storage 3 | 1 1 1 . . Processor 3 | . . . 2 1 Hackware 4 | . . 2 1 1 Protection 13 | . 1 4 2 6 Artifact . | . . . . . Weapon 43 | 2 4 8 12 17 Energy Gun 7 | . . 3 1 3 Energy Cannon . | . . . . . Ballistic Gun 5 | 2 1 1 1 . Ballistic Cannon 1 | . . . . 1 Launcher 16 | . 3 3 5 5 Special Weapon 3 | . . 1 . 2 Impact Weapon 9 | . . . 4 5 Slashing Weapon . | . . . . . Piercing Weapon . | . . . . . Special Melee Weapon 2 | . . . 1 1 Unidentified Prototypes 2 | . . . . 2 Parts Lost 44 | . . 7 17 20 Power 9 | . . 1 4 4 Propulsion 10 | . . 3 4 3 Utility 15 | . . 2 4 9 Weapon 10 | . . 1 5 4 Highest Loss Streak 15 | . . 2 15 10 To Critical Strikes . | . . . . . Average Slot Usage (%) 91 | . 98 97 78 87 Engine 9 | . 14 10 9 6 Core 1 | . . . . 3 Wheel 19 | . 28 32 8 4 Flight 9 | . . . 14 20 Device 6 | . . 1 6 15 Storage 6 | . 14 11 4 . Processor 1 | . . . 5 2 Hackware 8 | . . 7 3 13 Protection 9 | . 13 12 8 4 Energy Gun 2 | . . 4 . 2 Ballistic Gun 2 | . 9 2 1 . Launcher 10 | . 17 14 8 5 Impact Weapon 1 | . . . 5 2 Naked Turns 9 | . . . . 9 Heaviest Build 54 | 11 22 42 54 52 Greatest Support 56 | 20 20 42 48 56 Greatest Overweight (x) 11 | . 1 1 11 2 Average Overweight (x) . | . . . . . Largest Inventory Capacity 15 | 8 10 15 15 5 Average Capacity 10 | 6 9 14 9 5 Most Carried 15 | 6 10 15 15 5 Average Carried 9 | 3 8 13 8 4 Final Capacity 15 | 8 10 15 5 5 Final Carried 15 | 6 10 15 5 3 Class Distribution -------------------- 49% | Mutant 17% | Scavenger-Mutant 16% | Hacker-Mutant 10% | Hacker-Sprinter 3% | Sprinter 3% | Scavenger-Sprinter Dominant Class ---------------- Mutant | -10/Materials Mutant | -9/Materials Mutant | -8/Materials Hacker-Mutant | -7/Factory Resources | -11 -10 -9 -8 -7 ----------- Run | Yrd Mat Mat Mat Fac Matter Collected 2445 | 219 160 859 568 639 Remotely 76 | . . 76 . . Salvage Created 3279 | . 203 1096 1030 950 Parts 212 | . 17 77 58 60 Haulers Intercepted 4 | . . 1 2 1 Recyclers Shooed 13 | . 2 6 1 4 Parts Field Recycled 6 | . . . 6 . Retrieved Matter 42 | . . . 42 . Parts Self-Destructed . | . . . . . Prevented . | . . . . . Kills | -11 -10 -9 -8 -7 ------- Run | Yrd Mat Mat Mat Fac Combat Hostiles Destroyed 75 | . 7 29 26 13 Melee 1 | . . . 1 . Guns 9 | . 1 6 1 1 Cannons 1 | . . . . 1 AOE 57 | . 6 22 21 8 Classes Destroyed 16 | . 3 8 3 2 Worker 9 | . . 1 1 7 Builder 15 | . . 1 5 9 Tunneler 2 | . . 2 . . Hauler 4 | . . 1 2 1 Recycler 14 | . 2 4 3 5 Mechanic 1 | . . 1 . . Operator 3 | . . 2 1 . Watcher 8 | . . 1 3 4 Swarmer 23 | . 3 14 6 . Grunt 29 | . 4 6 12 7 Brawler 2 | . . . 2 . Duelist 1 | . . . . 1 Protector 1 | . . . 1 . Sentry 13 | . . 9 3 1 Hunter 4 | . . . 2 2 Programmer 2 | . . . . 2 Thug 1 | . . . . 1 Best Kill Streak 18 | . 4 6 18 11 Combat Bots Only 10 | . 3 5 10 3 Max Kills in Single Turn 6 | . 2 3 5 6 Gunslinging . | . . . . . Exploded 3 | . 2 3 3 1 Melee 1 | . . . 1 . Uniques/NPCs Destroyed . | . . . . . Combat | -11 -10 -9 -8 -7 -------- Run | Yrd Mat Mat Mat Fac Hostile Shots Fired 477 | . 16 99 168 194 Missed 150 | . 4 29 64 53 Damage Taken 5776 | . 244 946 1709 2877 Core 1405 | . 54 137 486 728 Absorbed by Shields . | . . . . . Redirected to Shielding 49 | . . . 49 . Ignored by Resistances 18 | . . . . 18 Regen/Repaired (Parts) 171 | . . 88 . 83 Core Remaining (%) 63 | 100 78 65 11 . Volleys Fired 205 | . 12 93 36 64 Largest 2 | . 2 2 2 2 Hottest 86 | . 60 86 63 84 Shots Fired 270 | . 21 122 56 71 Gun 111 | . 5 73 22 11 Cannon 18 | . . . . 18 Launcher 130 | . 16 47 34 33 Special 11 | . . 2 . 9 Kinetic 61 | . 5 22 16 18 Thermal 70 | . . 53 6 11 Explosive 105 | . 16 36 25 28 Electromagnetic 25 | . . 11 9 5 Robot Hit Streak 17 | . 6 11 17 5 Robot Miss Streak 4 | . 2 2 4 3 Penetration Max . | . . . . . Secondary Targets . | . . . . . Shots Hit Robots 207 | . 9 75 57 66 Core Hits 202 | . 16 59 69 58 Critical Kills 1 | . . 1 . . Critical Parts Destroyed 8 | . . . 3 5 Critical Strikes 11 | . . 3 3 5 Burn 2 | . . 2 . . Destroy 1 | . . 1 . . Smash 8 | . . . 3 5 Melee Attacks 56 | . . . 25 31 Impact 40 | . . . 12 28 Slashing . | . . . . . Piercing . | . . . . . Sneak Attacks 14 | . . . 9 5 Combat Hostiles . | . . . . . Follow-up Attacks . | . . . . . Damage Inflicted 11289 | . 668 2583 3524 4514 Guns 1210 | . 57 667 284 202 Cannons 382 | . . . . 382 Explosions 8338 | . 611 1857 2897 2973 Melee 1276 | . . . 343 933 Ramming 61 | . . 37 . 24 Kinetic 843 | . 57 205 199 382 Thermal 1390 | . 72 484 217 617 Explosive 6382 | . 539 1497 2201 2145 Electromagnetic 1337 | . . 360 564 413 Impact 1276 | . . . 343 933 Slashing . | . . . . . Piercing . | . . . . . Highest Corruption 14 | . 3 4 . 14 Average Corruption 2 | . 2 4 . 2 Corruption Purged 3 | . . . . 3 Corruption Blocked . | . . . . . Effects 26 | . 6 8 . 12 Message Errors 8 | . . 4 . 4 Matter Fused 2 | . 1 . . 1 Heat Flow Errors 4 | . 2 1 . 1 Energy Discharges 4 | . . 3 . 1 Parts Fused 1 | . . . . 1 Data Loss (minor) 2 | . . . . 2 Misfires 4 | . 2 . . 2 Alerts 1 | . 1 . . . Overload Shots . | . . . . . Overflow Damage 891 | . 9 70 215 597 Projectiles . | . . . . . Explosions 444 | . 9 60 87 288 Melee 447 | . . 10 128 309 Knockbacks 14 | . . . . 14 Impact 6 | . . . . 6 Kinetic 8 | . . . . 8 Secondary . | . . . . . Self-Inflicted Damage 635 | . 112 114 101 308 Shots 21 | . 5 4 4 8 Rammed 11 | . . 4 . 7 Targets Rammed 11 | . . 4 . 7 Kicked . | . . . . . Crushed . | . . . . . Highest Temperature 294 | . 229 198 144 294 Average Temperature 59 | . 50 34 39 83 Received Heat Transfer 1407 | . 63 231 612 501 Siege Activations . | . . . . . Robots Corrupted 2 | . . 1 1 . Combat Hostiles 2 | . . 1 1 . Parts Fried 13 | . . . 8 5 Impact Corruptions 17 | . . 1 6 10 Robots Melted . | . . . . . Combat Hostiles . | . . . . . Parts Melted 3 | . . 1 . 2 Heat Transferred 2541 | . 50 1406 385 700 Parts Sabotaged . | . . . . . Parts Stolen . | . . . . . Parts Stripped . | . . . . . Power Chain Reactions 5 | . . 1 3 1 Alert | -11 -10 -9 -8 -7 ------- Run | Yrd Mat Mat Mat Fac Peak Influence 1050 | . 341 814 1050 815 Initial 477 | . . 67 343 477 Average 432 | . 171 342 665 536 Maximum Alert Level 3 | . 1 3 3 3 Low Security (%) 23 | 100 70 38 . . Level 1 23 | . 29 23 25 22 Level 2 36 | . . 25 40 61 Level 3 15 | . . 12 34 16 Level 4 . | . . . . . Level 5 . | . . . . . High Security . | . . . . . Max Security . | . . . . . Squads Dispatched 29 | . 1 6 6 16 Investigation 6 | . 1 2 . 3 Extermination 3 | . . . . 3 Reinforcement 14 | . . 4 5 5 Assault 2 | . . . 1 1 Garrison 4 | . . . . 4 Intercept . | . . . . . Searches Triggered . | . . . . . Construction Impeded 2 | . . . 1 1 Haulers Reinforced 3 | . . . . 3 Active Scanning Responses . | . . . . . Cargo Convoy Interrupts . | . . . . . Stealth | -11 -10 -9 -8 -7 --------- Run | Yrd Mat Mat Mat Fac Distress Signals 5 | . 1 2 1 1 Communications Jammed 59 | . . . . 59 Distress Signals 59 | . . . . 59 Times Spotted 139 | . 14 47 44 34 Peak Tracking Total 10 | . 4 5 9 10 Tactical Retreats 9 | . . 3 3 3 Traps | -11 -10 -9 -8 -7 ------- Run | Yrd Mat Mat Mat Fac Traps Triggered 6 | . 3 . . 3 Indirectly . | . . . . . Trap Hack Attempts . | . . . . . Triggered . | . . . . . Disarmed 6 | . . 6 . . Reprogrammed . | . . . . . Reused . | . . . . . Traps Extracted . | . . . . . Installed . | . . . . . Triggered . | . . . . . Machines | -11 -10 -9 -8 -7 ---------- Run | Yrd Mat Mat Mat Fac Machines Disabled 21 | . 2 10 2 7 Max in Single Turn 2 | . 1 2 1 2 Machines Repaired . | . . . . . Machines Dismantled . | . . . . . Machines Sabotaged . | . . . . . Overloaded Fab Kills . | . . . . . Hacking | -11 -10 -9 -8 -7 --------- Run | Yrd Mat Mat Mat Fac Machines Accessed 23 | . 4 9 1 9 Terminals 13 | . 3 4 1 5 Fabricators . | . . . . . Repair Stations 6 | . . 2 . 4 Recycling Units 3 | . 1 2 . . Scanalyzers 1 | . . 1 . . Garrison Access . | . . . . . Total Hacks 61 | . 6 23 4 28 Successful 34 | . 2 14 2 16 Failed 27 | . 4 9 2 12 Catastrophic 3 | . 1 1 . 1 Database Lockouts . | . . . . . Manual 1 | . . . . 1 Terminals 32 | . 5 9 4 14 Fabricators . | . . . . . Repair Stations 18 | . . 4 . 14 Recycling Units 7 | . 1 6 . . Scanalyzers 4 | . . 4 . . Garrison Access . | . . . . . Terminal Hacks 17 | . 2 5 2 8 Record 2 | . 1 . 1 . Prototype ID Bank 1 | . 1 . . . Open DSF 1 | . . . . 1 Emergency Access Points 1 | . . . . 1 Alert Level 3 | . . 1 . 2 Locate Traps 1 | . . . . 1 Disarm Traps 1 | . . 1 . . Dispatch Records 1 | . . . . 1 Patrol Status 1 | . . . 1 . Transport Status 1 | . . 1 . . Investigation Status 1 | . . 1 . . Reinforcement Status 1 | . . 1 . . Recall Extermination 1 | . . . . 1 Zone Layout 1 | . . . . 1 Fabricator Hacks . | . . . . . Repair Station Hacks 10 | . . 2 . 8 Scan Component 5 | . . 1 . 4 Repair 5 | . . 1 . 4 Recycling Unit Hacks 3 | . . 3 . . Report Inventory 1 | . . 1 . . Retrieve Matter 1 | . . 1 . . Retrieve Components 1 | . . 1 . . Scanalyzer 4 | . . 4 . . Insert Component 2 | . . 2 . . Analyze 2 | . . 2 . . Garrison Access Hacks . | . . . . . Unauthorized Hacks . | . . . . . Terminals . | . . . . . Fabricators . | . . . . . Repair Stations . | . . . . . Recycling Units . | . . . . . Scanalyzers . | . . . . . Garrison Access . | . . . . . Data Cores Recovered . | . . . . . Used . | . . . . . Hacking Detections 14 | . 2 5 1 6 Full Trace Events 5 | . . 3 . 2 Feedback Events 1 | . . 1 . . Hackware Fried 1 | . . 1 . . Feedback Blocked . | . . . . . Robot Schematics Acquired . | . . . . . Robots Built . | . . . . . Authchips . | . . . . . Time . | . . . . . Total Robot Build Rating . | . . . . . Part Schematics Acquired 2 | . . 2 . . Parts Built . | . . . . . Authchips . | . . . . . Time . | . . . . . Total Part Build Rating . | . . . . . Parts Repaired 5 | . . 1 . 4 Time 222 | . . 26 . 196 Parts Recycled . | . . . . . Recycled Matter . | . . . . . Retrieved Matter 160 | . . 160 . . Retrieved Components 10 | . . 10 . . Parts Scanalyzed 2 | . . 2 . . Part Schematics Acquired 2 | . . 2 . . Parts Damaged . | . . . . . Bothacking | -11 -10 -9 -8 -7 ------------ Run | Yrd Mat Mat Mat Fac Used RIF Installer . | . . . . . Robots Hacked 13 | . . . 7 6 Non-combat 12 | . . . 7 5 Combat 1 | . . . . 1 Robot Hacks Applied 15 | . . . 8 7 parse_system 5 | . . . 2 3 no_distress 10 | . . . 6 4 Relay Couplers Released . | . . . . . Fabnet Peak Effective % . | . . . . . Robots Rewired . | . . . . . Allies Hacked . | . . . . . Hacks Repelled . | . . . . . Allies | -11 -10 -9 -8 -7 -------- Run | Yrd Mat Mat Mat Fac Total Allies . | . . . . . Largest Group . | . . . . . Highest-Rated Group . | . . . . . Highest-Rated Ally . | . . . . . Total Orders . | . . . . . Ally Attacks . | . . . . . Total Damage . | . . . . . Kills . | . . . . . Allies Corrupted . | . . . . . Allies Melted . | . . . . . Intel | -11 -10 -9 -8 -7 ------- Run | Yrd Mat Mat Mat Fac Robot Analysis Total . | . . . . . Derelict Logs Recovered . | . . . . . Drone Launches . | . . . . . Drone Recoveries . | . . . . . Exploration | -11 -10 -9 -8 -7 ------------- Run | Yrd Mat Mat Mat Fac Turns Passed 5382 | 66 496 2280 780 1760 Spaces Moved 5922 | 65 503 2222 1092 2040 Core 17 | 2 . . 11 4 Treads . | . . . . . Legs . | . . . . . Wheels 3358 | 63 503 2222 205 365 Hover . | . . . . . Flight 2547 | . . . 876 1671 Fastest Speed 26 | 50 80 86 29 26 Average Speed 71 | 79 87 88 49 60 Slowest Speed 600 | 80 95 105 600 169 Overloaded Moves . | . . . . . Propulsion Burnouts . | . . . . . Robots Hopped . | . . . . . Cave-ins Triggered . | . . . . . Exploration Rate (%) 44 | 3 60 82 48 27 Regions Visited 4 Branch Regions . Pre-discovered Areas . | . . . . . Known Exits Taken . | . . . . . Unknown Exits Taken 4 | 1 1 1 1 . Scrap Searched . | . . . . . Spaces Dug . | . . . . . Terrain Destroyed 705 | . 108 283 149 165 Melee . | . . . . . Projectile 2 | . . . . 2 AOE 703 | . 108 283 149 163 Terrain Rammed . | . . . . . Walls Destroyed . | . . . . . Machines Disabled . | . . . . . Actions | -11 -10 -9 -8 -7 --------- Run | Yrd Mat Mat Mat Fac Total 6718 | 76 541 2409 1249 2443 Wait 263 | . . 18 41 204 Move 5918 | 64 502 2221 1091 2040 Hop . | . . . . . Pick Up 59 | 6 10 26 10 7 Fast Attach 54 | 6 3 5 12 28 Attach 34 | . 1 9 14 10 Detach 14 | . 2 1 2 9 Swap 28 | . 2 13 5 8 Drop 58 | . 9 19 13 17 Fire 205 | . 12 93 36 64 Melee 56 | . . . 25 31 Ram 11 | . . 4 . 7 Kick . | . . . . . Crush . | . . . . . Escape Stasis 18 | . . . . 18 Rewire . | . . . . . Trap . | . . . . . Miscellaneous . | . . . . . Route ------- -11/Scrapyard -10/Materials (discovered 4 exits: *Mat x3 / [*Min]) -9/Materials (discovered 5 exits: *Mat x3 / [*Min x2]) -8/Materials (discovered 3 exits: *Fac x2 / [*Sto]) -7/Factory History --------- Turn | Location | Event 14 | -11/Scrapyard | Discovered new exit (range 14) 67 | -11/Scrapyard | Entered Materials 112 | -10/Materials | Discovered new exit (range 16) 129 | -10/Materials | Discovered new exit (range 15) 307 | -10/Materials | Build established: Mutant 348 | -10/Materials | Discovered new exit (range 4) 525 | -10/Materials | Discovered new exit (range 14) 563 | -10/Materials | Entered another Materials area 563 | -9/Materials | Evolved 2 slots: Propulsion x1, Utility x1 640 | -9/Materials | Discovered new exit (range 12) 898 | -9/Materials | Repaired Lgt. Armor Plating? 1176 | -9/Materials | Discovered new exit (range 8) 1359 | -9/Materials | Discovered new exit (range 16) 1443 | -9/Materials | Discovered new exit (range 16) 1773 | -9/Materials | Build established: Scavenger-Mutant 1886 | -9/Materials | Discovered new exit (range 10) 1963 | -9/Materials | Hacking Suite fried by hacking feedback 2698 | -9/Materials | Build established: Mutant 2843 | -9/Materials | Entered another Materials area 2843 | -8/Materials | Evolved 2 slots: Power x1, Utility x1 3023 | -8/Materials | Discovered new exit (range 12) 3117 | -8/Materials | Destroyed 10 combat bots 3175 | -8/Materials | Core integrity fell below 50% 3199 | -8/Materials | Lost 15 parts (3p3n4u5w) 3243 | -8/Materials | First assault squad dispatched 3297 | -8/Materials | Discovered new exit (range 11) 3402 | -8/Materials | Core integrity fell below 20% 3417 | -8/Materials | Discovered new exit (range 10) 3426 | -8/Materials | Destroyed 7 combat bots 3623 | -8/Materials | Entered Factory 3623 | -7/Factory | Evolved 2 slots: Propulsion x1, Utility x1 3789 | -7/Factory | Repaired Reaction Control System 3850 | -7/Factory | Repaired Imp. VTOL Module 4190 | -7/Factory | Repaired Reaction Control System 4229 | -7/Factory | Garrison activated, responded to threat 4345 | -7/Factory | Repaired Imp. VTOL Module 4483 | -7/Factory | Garrison activated, responded to threat 4713 | -7/Factory | Lost 3 parts (1p2u) 5036 | -7/Factory | Build established: Hacker-Mutant 5223 | -7/Factory | First assault squad dispatched 5356 | -7/Factory | Core integrity fell below 50% 5375 | -7/Factory | System corruption reached 10% 5378 | -7/Factory | Core integrity fell below 20% 5380 | -7/Factory | Build established: Mutant 5383 | -7/Factory | Destroyed by B-48 Gladiator with Mace Last Messages --------------- 05372_ Shock Bomb Launcher destroyed. 05373_ ALERT: Rogue bot located, Programmers report to Factory Zone 3F. 05373_ Armor Integrity Analyzer destroyed. 05373_ System corrupted by crushing effect (+5). 05374_ Arm. Huge Wheel destroyed. 05374_ Powered Hammer destroyed. 05374_ System corrupted by crushing effect (+5). 05374_ System corrupted by crushing effect (+2). 05374_ Slammed into B-48 Gladiator. 05375_ Slammed into L-41 Fighter. 05375_ Knocked back. 05376_ Slammed into B-48 Gladiator. 05377_ Slammed into L-41 Fighter. 05378_ W-25 Informer sends out distress signal. 05378_ U-05 Engineer repairs door. 05378_ Slammed into B-48 Gladiator. 05378_ Slug penetrates Wall. 05380_ Slammed into W-25 Informer. 05381_ Slammed into I-36 Angel. 05381_ Destabilizing: Core damaged (-7). Map ----- +----------------------------------------------------+ | ???????????????????????????????????????????????# | | ???????????????????????????????????????????????# | | ???????????????????????????????????????????????# | | ???????????????????????????????????????????????### | | ??????????????????????????????????#####+########?? | | ??????????????????????????????????# ! #?? | | ??????????????????????????????????# [ ! #?? | | ??????????????????????????????????# * !#?? | | ??????????????????????????????????# #?? | | ??????????????????????????????????#! """" """" #?? | | ??????????????????????????????????# """" """" #?? | | ??????????????????????????????????# """" """" #?# | | ??????????????????????????????????# """" """" #?# | | ??????????????????????????????????# """" """" #?# | | ????????????????????????????????? # """" """" ### | | ?????????????????????????????? # """" """" + | | ?????????????????????????????? # # | | ????????????????????????????? ###+##+####### | | ????????????????????????????? #?# | | ???????????????????????????? ### | | ???????????????????????????? + """ """ """ | | ???????????????????????????? ### """ """ """ | | ?????????? ????????????????? #?# """ """ """ | | ????????? ???????????????? ### | | ????????? ####################+### """ """ """ | | ???????? @ i """ """ """ | | ???????? bbl t k """ """ """ | | ??????? w | | ??????? ! /b % | | ??????? r=% u gg k r | | ?????????######## ######+########## | | ??????????????# # # ???????? | | ?????????????#### !u ! # ???????? | | ?????????????# ! ######? ????????? | | ?????????????# u ] #??????? ?????????? | | ?????????????# % *##??????? ??????????? | | ?????????????# %%% u######???????????????? | | ?????????????########## # #???????????????? | | ?????????????????## # # "" #???????????????? | | ???????????????????# # # " #???????????????? | | ?????????????????????## # "F #???????????????? | | ?????????############## / "" #???????????????? | | ?????????# # ! # #???????????????? | | ?????????# T # % # =#???????????????? | | ?????????# """"""" # % # ! #???????????????? | | ?????????# """"""" # # #???????????????? | | ?????????# """"""" # %## #+#???????????????? | | ?????????# """"""" + #### #???????????????? | | ?????????# # #??# #???????????????? | | ?????????# """"""" =# #??# #???????????????? | +----------------------------------------------------+ Best States ------------- Heat Dissipation 34 Energy Generation 27 Energy Capacity 440 Matter Stores 300 Matter Capacity 300 Sight Range 16 Robot Scan Range 15 Terrain Scan Density 110 ECM Strength 2 Jamming Range 12 Armor Coverage 450 Resistance: KI 30 Core Shielding 20 Evasion (%) 72 Targeting Accuracy 8 Armor Integrity Analysis 30 Offensive Hacking 20 Item Schematics ----------------- Adv. EMP Blaster | -9/Materials | Scanalyzed Imp. VTOL Module | -9/Materials | Scanalyzed Robot Schematics ------------------ None Fabricated ------------ Nothing Alien Tech Used ----------------- None Achievements -------------- Deadly Force Made in Tau Ceti IV Power Corrupts Total Silence Challenges ------------ None Game ------ Seed PlatingProtonMembrane Manual? 0 Play Time 01:55:27 Cumulative 10.7 hours Start 2024.04.27 @ 11:10:38 End 2024.04.27 @ 15:19:40 Sessions 1 Manual Loads 0 Difficulty Rogue Special Mode None Game No. 15 Rogue 15 Adventurer 0 Explorer 0 Win Type - Total 0 Types 0/0/0/0/0/0/0/0/0 Lore% 6 Gallery% 15 Achievement% 14 Wizard Run 0 Options --------- Layout 0 ASCII 0 Keyboard 0 Movement Arrows Keybinds 0 Fullscreen 2 Font 18/SmallcapsGlow Map View 38x25 Zoom Use 99% Tactical HUD 1 Map Filters NONE Filters NONE Steam 1 RUN: 0027b02d-d4dd-407f-8bcf-c50bd1d5b88c